[Event "Titled Tuesday Blitz May 2 Early 2023"]
[White "Singh, Arvinder Preet"]
[Black "Leenhouts, Koen"]
[WhiteFideId "5013240"]
[BlackFideId "1008439"]
[WhiteElo "2124"]
[BlackElo "2409"]
[Result "0-1"]
[Round "08"]
[TimeControl "180+2"]
[Date "2023.05.02"]
[WhiteClock "0:01:52"]
[BlackClock "0:00:51"]

1. e4 {[%clk 0:03:00]}  e5 {[%clk 0:02:56]} 2. Nf3 {[%clk 0:03:00]}  d6 {[%clk 0:02:56]} 3. d4 {[%clk 0:03:00]}  exd4 {[%clk 0:02:57]} 4. Nxd4 {[%clk 0:02:59]}  Nf6 {[%clk 0:02:57]} 5. Nc3 {[%clk 0:03:00]}  Be7 {[%clk 0:02:57]} 6. Bf4 {[%clk 0:03:00]}  O-O {[%clk 0:02:53]} 7. Qd2 {[%clk 0:03:00]}  Nc6 {[%clk 0:02:49]} 8. O-O-O {[%clk 0:02:58]}  Nxd4 {[%clk 0:02:49]} 9. Qxd4 {[%clk 0:02:58]}  a6 {[%clk 0:02:49]} 10. f3 {[%clk 0:02:58]}  Nd7 {[%clk 0:02:46]} 11. Qd2 {[%clk 0:02:52]}  b5 {[%clk 0:02:42]} 12. Kb1 {[%clk 0:02:51]}  Bb7 {[%clk 0:02:30]} 13. Nd5 {[%clk 0:02:49]}  Bxd5 {[%clk 0:02:29]} 14. exd5 {[%clk 0:02:49]}  Bf6 {[%clk 0:02:26]} 15. Bd3 {[%clk 0:02:44]}  Nc5 {[%clk 0:02:26]} 16. h4 {[%clk 0:02:42]}  Na4 {[%clk 0:02:21]} 17. c3 {[%clk 0:02:35]}  b4 {[%clk 0:02:20]} 18. Bxh7+ {[%clk 0:02:34]}  Kxh7 {[%clk 0:02:16]} 19. Qc2+ {[%clk 0:02:35]}  Kg8 {[%clk 0:02:15]} 20. Qxa4 {[%clk 0:02:34]}  bxc3 {[%clk 0:02:15]} 21. b3 {[%clk 0:02:32]}  Re8 {[%clk 0:02:06]} 22. Qc4 {[%clk 0:02:29]}  a5 {[%clk 0:02:02]} 23. Bg5 {[%clk 0:02:20]}  a4 {[%clk 0:01:58]} 24. b4 {[%clk 0:02:07]}  Rb8 {[%clk 0:01:36]} 25. a3 {[%clk 0:02:06]}  Bxg5 {[%clk 0:01:25]} 26. hxg5 {[%clk 0:02:05]}  Qxg5 {[%clk 0:01:26]} 27. Qxc3 {[%clk 0:02:02]}  Re3 {[%clk 0:01:11]} 28. Qc2 {[%clk 0:01:55]}  Rb3+ {[%clk 0:00:58]} 29. Ka2 {[%clk 0:01:55]}  g6 {[%clk 0:00:54]} 30. Rd3 {[%clk 0:01:51]}  Rxd3 {[%clk 0:00:51]} 31. Qxd3 {[%clk 0:01:52]}  Qxg2+ {[%clk 0:00:51]} 0-1


[Site "https://www.chess.com"]

[Event "Titled Tuesday Blitz May 2 Early 2023"]
[White "Stanojevic, Ilija"]
[Black "Souleidis, Georgios"]
[WhiteFideId "959995"]
[BlackFideId "4206827"]
[WhiteElo "2138"]
[BlackElo "2401"]
[Result "0-1"]
[Round "08"]
[TimeControl "180+2"]
[Date "2023.05.02"]
[WhiteClock "0:00:04"]
[BlackClock "0:00:14"]

1. d4 {[%clk 0:03:00]}  Nf6 {[%clk 0:02:59]} 2. c4 {[%clk 0:02:59]}  g6 {[%clk 0:02:59]} 3. Nc3 {[%clk 0:02:58]}  Bg7 {[%clk 0:02:59]} 4. g3 {[%clk 0:02:56]}  O-O {[%clk 0:02:59]} 5. Bg2 {[%clk 0:02:56]}  d6 {[%clk 0:02:59]} 6. Nf3 {[%clk 0:02:56]}  Nc6 {[%clk 0:02:59]} 7. O-O {[%clk 0:02:55]}  e5 {[%clk 0:03:00]} 8. dxe5 {[%clk 0:02:49]}  Nxe5 {[%clk 0:03:01]} 9. Nxe5 {[%clk 0:02:48]}  dxe5 {[%clk 0:03:01]} 10. Qxd8 {[%clk 0:02:32]}  Rxd8 {[%clk 0:03:02]} 11. Bg5 {[%clk 0:02:32]}  Rd7 {[%clk 0:02:59]} 12. h3 {[%clk 0:02:21]}  c6 {[%clk 0:02:58]} 13. Na4 {[%clk 0:02:08]}  h6 {[%clk 0:02:29]} 14. Be3 {[%clk 0:02:05]}  Rd8 {[%clk 0:02:27]} 15. Nc5 {[%clk 0:01:45]}  Bf8 {[%clk 0:02:13]} 16. Rfd1 {[%clk 0:01:26]}  Re8 {[%clk 0:02:13]} 17. Rd2 {[%clk 0:01:06]}  Kg7 {[%clk 0:02:10]} 18. Rad1 {[%clk 0:01:05]}  Be7 {[%clk 0:02:10]} 19. g4 {[%clk 0:01:03]}  Rg8 {[%clk 0:01:49]} 20. a4 {[%clk 0:01:01]}  Rb8 {[%clk 0:01:45]} 21. a5 {[%clk 0:00:52]}  b6 {[%clk 0:00:49]} 22. axb6 {[%clk 0:00:31]}  axb6 {[%clk 0:00:49]} 23. Nb3 {[%clk 0:00:20]}  Be6 {[%clk 0:00:39]} 24. Rc2 {[%clk 0:00:09]}  Rgc8 {[%clk 0:00:37]} 25. Nd2 {[%clk 0:00:08]}  b5 {[%clk 0:00:24]} 26. cxb5 {[%clk 0:00:07]}  cxb5 {[%clk 0:00:25]} 27. Rdc1 {[%clk 0:00:08]}  Rxc2 {[%clk 0:00:23]} 28. Rxc2 {[%clk 0:00:09]}  Nd5 {[%clk 0:00:20]} 29. Bc5 {[%clk 0:00:08]}  Kf8 {[%clk 0:00:17]} 30. Bxe7+ {[%clk 0:00:07]}  Kxe7 {[%clk 0:00:18]} 31. Rc5 {[%clk 0:00:06]}  Kd6 {[%clk 0:00:15]} 32. Ne4+ {[%clk 0:00:06]}  Ke7 {[%clk 0:00:15]} 33. b3 {[%clk 0:00:03]}  Nf4 {[%clk 0:00:15]} 34. Bf3 {[%clk 0:00:03]}  Bxb3 {[%clk 0:00:15]} 35. Kh2 {[%clk 0:00:02]}  Be6 {[%clk 0:00:15]} 36. Rxe5 {[%clk 0:00:03]}  b4 {[%clk 0:00:11]} 37. Rc5 {[%clk 0:00:03]}  b3 {[%clk 0:00:12]} 38. Rc1 {[%clk 0:00:03]}  b2 {[%clk 0:00:12]} 39. Rb1 {[%clk 0:00:04]}  Ba2 {[%clk 0:00:12]} 40. Nd2 {[%clk 0:00:03]}  Bxb1 {[%clk 0:00:12]} 41. Nxb1 {[%clk 0:00:03]}  g5 {[%clk 0:00:12]} 42. Kg3 {[%clk 0:00:04]}  Rc8 {[%clk 0:00:12]} 43. Be4 {[%clk 0:00:03]}  Rc1 {[%clk 0:00:12]} 44. Bf5 {[%clk 0:00:04]}  Nxe2+ {[%clk 0:00:12]} 45. Kf3 {[%clk 0:00:04]}  Nc3 {[%clk 0:00:13]} 46. Nxc3 {[%clk 0:00:04]}  Rxc3+ {[%clk 0:00:14]} 0-1


[Site "https://www.chess.com"]

[Event "Titled Tuesday Blitz May 2 Early 2023"]
[White "Skliarov, Viktor"]
[Black "Lopez Gracia, Fernando"]
[WhiteFideId "14106736"]
[BlackFideId "2207184"]
[WhiteElo "2317"]
[BlackElo "2255"]
[Result "1-0"]
[Round "08"]
[TimeControl "180+2"]
[Date "2023.05.02"]
[WhiteClock "0:00:04"]
[BlackClock "0:00:11"]

1. e4 {[%clk 0:03:00]}  e5 {[%clk 0:02:57]} 2. Nc3 {[%clk 0:03:01]}  Nf6 {[%clk 0:02:57]} 3. Bc4 {[%clk 0:03:01]}  Bc5 {[%clk 0:02:57]} 4. d3 {[%clk 0:03:01]}  O-O {[%clk 0:02:58]} 5. a3 {[%clk 0:03:00]}  c6 {[%clk 0:02:55]} 6. Qf3 {[%clk 0:02:58]}  h6 {[%clk 0:02:49]} 7. Nge2 {[%clk 0:02:56]}  d6 {[%clk 0:02:49]} 8. h3 {[%clk 0:02:56]}  Be6 {[%clk 0:02:44]} 9. O-O {[%clk 0:02:56]}  Nbd7 {[%clk 0:02:40]} 10. Ng3 {[%clk 0:02:55]}  b5 {[%clk 0:02:36]} 11. Ba2 {[%clk 0:02:49]}  Kh7 {[%clk 0:02:29]} 12. Nf5 {[%clk 0:02:47]}  Bxf5 {[%clk 0:02:15]} 13. Qxf5+ {[%clk 0:02:44]}  g6 {[%clk 0:02:15]} 14. Qf3 {[%clk 0:02:43]}  Qe7 {[%clk 0:02:13]} 15. Bd2 {[%clk 0:02:31]}  Nh5 {[%clk 0:02:14]} 16. Rae1 {[%clk 0:02:27]}  Ng7 {[%clk 0:02:10]} 17. Kh2 {[%clk 0:02:06]}  Ne6 {[%clk 0:02:09]} 18. Ne2 {[%clk 0:01:57]}  Rae8 {[%clk 0:02:05]} 19. Qg3 {[%clk 0:01:51]}  f5 {[%clk 0:01:58]} 20. f4 {[%clk 0:01:10]}  fxe4 {[%clk 0:01:46]} 21. dxe4 {[%clk 0:01:04]}  Nxf4 {[%clk 0:01:42]} 22. Bxf4 {[%clk 0:00:39]}  exf4 {[%clk 0:01:43]} 23. Nxf4 {[%clk 0:00:40]}  Ne5 {[%clk 0:01:32]} 24. Ne6 {[%clk 0:00:39]}  Rf6 {[%clk 0:01:25]} 25. Nxc5 {[%clk 0:00:36]}  dxc5 {[%clk 0:01:22]} 26. Kg1 {[%clk 0:00:20]}  Ref8 {[%clk 0:01:22]} 27. c3 {[%clk 0:00:17]}  Qd6 {[%clk 0:01:20]} 28. Rxf6 {[%clk 0:00:16]}  Rxf6 {[%clk 0:01:18]} 29. Qe3 {[%clk 0:00:13]}  c4 {[%clk 0:01:16]} 30. Bb1 {[%clk 0:00:13]}  Kg7 {[%clk 0:01:13]} 31. Bc2 {[%clk 0:00:13]}  Rf7 {[%clk 0:01:10]} 32. Rd1 {[%clk 0:00:12]}  Qe7 {[%clk 0:01:08]} 33. Qd4 {[%clk 0:00:11]}  Qf6 {[%clk 0:01:07]} 34. Re1 {[%clk 0:00:09]}  Rd7 {[%clk 0:01:07]} 35. Qe3 {[%clk 0:00:08]}  Qg5 {[%clk 0:01:07]} 36. Qxg5 {[%clk 0:00:08]}  hxg5 {[%clk 0:01:07]} 37. Kf2 {[%clk 0:00:08]}  Kf6 {[%clk 0:01:06]} 38. Ke3 {[%clk 0:00:08]}  Nd3 {[%clk 0:01:04]} 39. Rd1 {[%clk 0:00:05]}  Nc5 {[%clk 0:00:52]} 40. Rf1+ {[%clk 0:00:05]}  Ke5 {[%clk 0:00:49]} 41. Rf8 {[%clk 0:00:05]}  Ne6 {[%clk 0:00:49]} 42. Rg8 {[%clk 0:00:05]}  Rg7 {[%clk 0:00:49]} 43. Ra8 {[%clk 0:00:05]}  Re7 {[%clk 0:00:45]} 44. Rc8 {[%clk 0:00:05]}  c5 {[%clk 0:00:43]} 45. a4 {[%clk 0:00:04]}  a6 {[%clk 0:00:35]} 46. Rb8 {[%clk 0:00:05]}  Nc7 {[%clk 0:00:25]} 47. Bd1 {[%clk 0:00:04]}  Kd6 {[%clk 0:00:24]} 48. Bf3 {[%clk 0:00:05]}  bxa4 {[%clk 0:00:21]} 49. Rb6+ {[%clk 0:00:04]}  Kd7 {[%clk 0:00:21]} 50. Rxg6 {[%clk 0:00:05]}  Nd5+ {[%clk 0:00:19]} 51. Kd2 {[%clk 0:00:05]}  Nf4 {[%clk 0:00:16]} 52. Rxa6 {[%clk 0:00:05]}  Ne6 {[%clk 0:00:17]} 53. Rxa4 {[%clk 0:00:05]}  Kd6 {[%clk 0:00:13]} 54. Ke3 {[%clk 0:00:04]}  Rb7 {[%clk 0:00:12]} 55. Ra6+ {[%clk 0:00:03]}  Ke5 {[%clk 0:00:12]} 56. g3 {[%clk 0:00:04]}  Rxb2 {[%clk 0:00:12]} 57. Bg4 {[%clk 0:00:04]}  Nd4 {[%clk 0:00:12]} 58. cxd4+ {[%clk 0:00:04]}  cxd4+ {[%clk 0:00:13]} 59. Kf3 {[%clk 0:00:04]}  Rb3+ {[%clk 0:00:13]} 60. Kf2 {[%clk 0:00:04]}  Kxe4 {[%clk 0:00:14]} 61. Rc6 {[%clk 0:00:04]}  Rb2+ {[%clk 0:00:13]} 62. Ke1 {[%clk 0:00:04]}  c3 {[%clk 0:00:14]} 63. h4 {[%clk 0:00:04]}  c2 {[%clk 0:00:13]} 64. Kd2 {[%clk 0:00:04]}  d3 {[%clk 0:00:13]} 65. hxg5 {[%clk 0:00:04]}  Rb1 {[%clk 0:00:13]} 66. g6 {[%clk 0:00:05]}  Rb6 {[%clk 0:00:11]} 67. Rxb6 {[%clk 0:00:04]} 1-0


[Site "https://www.chess.com"]

[Event "Titled Tuesday Blitz May 2 Early 2023"]
[White "Kukula, Pawel"]
[Black "Janaszak, Dawid"]
[WhiteFideId "1115081"]
[BlackFideId "1119206"]
[WhiteElo "2012"]
[BlackElo "2220"]
[Result "0-1"]
[Round "08"]
[TimeControl "180+2"]
[Date "2023.05.02"]
[WhiteClock "0:00:03"]
[BlackClock "0:00:12"]

1. d4 {[%clk 0:02:56]}  d5 {[%clk 0:02:59]} 2. c4 {[%clk 0:02:54]}  e6 {[%clk 0:02:59]} 3. Nc3 {[%clk 0:02:53]}  c5 {[%clk 0:02:59]} 4. cxd5 {[%clk 0:02:53]}  exd5 {[%clk 0:03:00]} 5. Nf3 {[%clk 0:02:53]}  Nc6 {[%clk 0:03:00]} 6. g3 {[%clk 0:02:53]}  Nf6 {[%clk 0:03:00]} 7. Bg2 {[%clk 0:02:54]}  Be7 {[%clk 0:02:58]} 8. O-O {[%clk 0:02:54]}  cxd4 {[%clk 0:02:55]} 9. Nxd4 {[%clk 0:02:54]}  O-O {[%clk 0:02:56]} 10. Be3 {[%clk 0:02:52]}  Ng4 {[%clk 0:02:47]} 11. Bf4 {[%clk 0:02:43]}  Nf6 {[%clk 0:02:32]} 12. Be3 {[%clk 0:02:42]}  Ne5 {[%clk 0:02:22]} 13. Qb3 {[%clk 0:02:31]}  Nc4 {[%clk 0:02:19]} 14. Nxd5 {[%clk 0:02:21]}  Nxe3 {[%clk 0:02:17]} 15. Nxe7+ {[%clk 0:02:15]}  Qxe7 {[%clk 0:02:18]} 16. fxe3 {[%clk 0:02:15]}  Re8 {[%clk 0:02:15]} 17. e4 {[%clk 0:02:11]}  Be6 {[%clk 0:02:05]} 18. Nxe6 {[%clk 0:02:01]}  Qxe6 {[%clk 0:02:06]} 19. Qxe6 {[%clk 0:01:59]}  Rxe6 {[%clk 0:02:06]} 20. e5 {[%clk 0:01:58]}  Rxe5 {[%clk 0:02:06]} 21. Bxb7 {[%clk 0:01:59]}  Rb8 {[%clk 0:02:06]} 22. Bf3 {[%clk 0:01:55]}  Rxb2 {[%clk 0:02:06]} 23. Rab1 {[%clk 0:01:55]}  Rxa2 {[%clk 0:01:51]} 24. Rb8+ {[%clk 0:01:55]}  Re8 {[%clk 0:01:51]} 25. Rfb1 {[%clk 0:01:52]}  Kf8 {[%clk 0:01:47]} 26. R8b7 {[%clk 0:01:49]}  g6 {[%clk 0:01:24]} 27. Rc7 {[%clk 0:01:43]}  Re7 {[%clk 0:01:11]} 28. Rb8+ {[%clk 0:01:37]}  Ne8 {[%clk 0:01:11]} 29. Rcc8 {[%clk 0:01:25]}  Ra5 {[%clk 0:01:05]} 30. Kf2 {[%clk 0:01:16]}  Rae5 {[%clk 0:01:03]} 31. Ra8 {[%clk 0:01:06]}  Kg7 {[%clk 0:01:02]} 32. h4 {[%clk 0:01:03]}  h5 {[%clk 0:00:59]} 33. Rc6 {[%clk 0:00:56]}  Nf6 {[%clk 0:00:56]} 34. Ra6 {[%clk 0:00:55]}  Ne4+ {[%clk 0:00:55]} 35. Kg2 {[%clk 0:00:53]}  Nc3 {[%clk 0:00:55]} 36. R6xa7 {[%clk 0:00:52]}  Nxe2 {[%clk 0:00:50]} 37. Rxe7 {[%clk 0:00:50]}  Rxe7 {[%clk 0:00:50]} 38. Bxe2 {[%clk 0:00:50]}  Rxe2+ {[%clk 0:00:50]} 39. Kf3 {[%clk 0:00:50]}  Rb2 {[%clk 0:00:50]} 40. Ra3 {[%clk 0:00:50]}  Rb5 {[%clk 0:00:49]} 41. Ra6 {[%clk 0:00:48]}  Rf5+ {[%clk 0:00:47]} 42. Kg2 {[%clk 0:00:47]}  Rf6 {[%clk 0:00:48]} 43. Ra8 {[%clk 0:00:45]}  Re6 {[%clk 0:00:48]} 44. Ra5 {[%clk 0:00:45]}  Kf6 {[%clk 0:00:48]} 45. Rb5 {[%clk 0:00:44]}  Rd6 {[%clk 0:00:48]} 46. Ra5 {[%clk 0:00:44]}  Ke6 {[%clk 0:00:49]} 47. Rb5 {[%clk 0:00:44]}  Rd5 {[%clk 0:00:49]} 48. Rb7 {[%clk 0:00:43]}  f6 {[%clk 0:00:48]} 49. Kf3 {[%clk 0:00:41]}  Rd3+ {[%clk 0:00:48]} 50. Kg2 {[%clk 0:00:41]}  Kf5 {[%clk 0:00:45]} 51. Rb5+ {[%clk 0:00:38]}  Ke4 {[%clk 0:00:45]} 52. Rb6 {[%clk 0:00:36]}  Rd2+ {[%clk 0:00:44]} 53. Kh3 {[%clk 0:00:32]}  Ke5 {[%clk 0:00:45]} 54. Rb5+ {[%clk 0:00:29]}  Rd5 {[%clk 0:00:45]} 55. Rb6 {[%clk 0:00:28]}  Kf5 {[%clk 0:00:44]} 56. Rb4 {[%clk 0:00:26]}  Re5 {[%clk 0:00:43]} 57. Rf4+ {[%clk 0:00:25]}  Ke6 {[%clk 0:00:43]} 58. Ra4 {[%clk 0:00:26]}  g5 {[%clk 0:00:42]} 59. hxg5 {[%clk 0:00:25]}  fxg5 {[%clk 0:00:42]} 60. Ra6+ {[%clk 0:00:25]}  Kf5 {[%clk 0:00:43]} 61. Rh6 {[%clk 0:00:26]}  Re1 {[%clk 0:00:39]} 62. g4+ {[%clk 0:00:21]}  hxg4+ {[%clk 0:00:38]} 63. Kg3 {[%clk 0:00:22]}  Re3+ {[%clk 0:00:38]} 64. Kf2 {[%clk 0:00:22]}  Rc3 {[%clk 0:00:35]} 65. Rh8 {[%clk 0:00:21]}  g3+ {[%clk 0:00:35]} 66. Kg2 {[%clk 0:00:20]}  Kg4 {[%clk 0:00:36]} 67. Ra8 {[%clk 0:00:21]}  Rc2+ {[%clk 0:00:36]} 68. Kg1 {[%clk 0:00:21]}  Rb2 {[%clk 0:00:34]} 69. Rh8 {[%clk 0:00:20]}  Rf2 {[%clk 0:00:27]} 70. Ra8 {[%clk 0:00:18]}  Rf4 {[%clk 0:00:25]} 71. Ra3 {[%clk 0:00:16]}  Kh3 {[%clk 0:00:24]} 72. Ra8 {[%clk 0:00:16]}  Rc4 {[%clk 0:00:18]} 73. Rh8+ {[%clk 0:00:16]}  Kg4 {[%clk 0:00:18]} 74. Ra8 {[%clk 0:00:17]}  Rc1+ {[%clk 0:00:18]} 75. Kg2 {[%clk 0:00:17]}  Rc2+ {[%clk 0:00:18]} 76. Kg1 {[%clk 0:00:16]}  Rf2 {[%clk 0:00:19]} 77. Rh8 {[%clk 0:00:14]}  Rd2 {[%clk 0:00:16]} 78. Ra8 {[%clk 0:00:14]}  Kf4 {[%clk 0:00:14]} 79. Rf8+ {[%clk 0:00:13]}  Kg4 {[%clk 0:00:13]} 80. Rh8 {[%clk 0:00:13]}  Rh2 {[%clk 0:00:13]} 81. Rf8 {[%clk 0:00:13]}  Re2 {[%clk 0:00:12]} 82. Rh8 {[%clk 0:00:12]}  Rb2 {[%clk 0:00:11]} 83. Rf8 {[%clk 0:00:12]}  g2 {[%clk 0:00:11]} 84. Rh8 {[%clk 0:00:08]}  Kg3 {[%clk 0:00:11]} 85. Rh3+ {[%clk 0:00:02]}  Kf4 {[%clk 0:00:11]} 86. Rh8 {[%clk 0:00:02]}  g4 {[%clk 0:00:12]} 87. Rf8+ {[%clk 0:00:03]}  Kg3 {[%clk 0:00:12]} 88. Rf3+ {[%clk 0:00:03]}  Kxf3 {[%clk 0:00:12]} 0-1


[Site "https://www.chess.com"]

[Event "Titled Tuesday Blitz May 2 Early 2023"]
[White "Budrewicz, Krzysztof"]
[Black "Gurevich, Dmitry"]
[WhiteFideId "1127950"]
[BlackFideId "2000407"]
[WhiteElo "2230"]
[BlackElo "2506"]
[Result "1/2-1/2"]
[Round "08"]
[TimeControl "180+2"]
[Date "2023.05.02"]
[WhiteClock "0:01:37"]
[BlackClock "0:00:01"]

1. d4 {[%clk 0:03:00]}  Nf6 {[%clk 0:02:51]} 2. c4 {[%clk 0:03:00]}  a6 {[%clk 0:02:49]} 3. Nc3 {[%clk 0:02:58]}  c5 {[%clk 0:02:49]} 4. d5 {[%clk 0:02:58]}  b5 {[%clk 0:02:48]} 5. Nf3 {[%clk 0:02:55]}  b4 {[%clk 0:02:47]} 6. Na4 {[%clk 0:02:55]}  d6 {[%clk 0:02:47]} 7. g3 {[%clk 0:02:54]}  g6 {[%clk 0:02:46]} 8. b3 {[%clk 0:02:55]}  Bg7 {[%clk 0:02:46]} 9. Bb2 {[%clk 0:02:55]}  Bd7 {[%clk 0:02:46]} 10. Bg2 {[%clk 0:02:56]}  Bxa4 {[%clk 0:02:42]} 11. bxa4 {[%clk 0:02:56]}  O-O {[%clk 0:02:42]} 12. O-O {[%clk 0:02:57]}  Nbd7 {[%clk 0:02:40]} 13. Re1 {[%clk 0:02:57]}  Qa5 {[%clk 0:02:39]} 14. e4 {[%clk 0:02:56]}  Nb6 {[%clk 0:02:38]} 15. Bxf6 {[%clk 0:02:52]}  Bxf6 {[%clk 0:02:37]} 16. e5 {[%clk 0:02:51]}  Bg7 {[%clk 0:02:31]} 17. Qd3 {[%clk 0:02:51]}  Qxa4 {[%clk 0:02:26]} 18. h4 {[%clk 0:02:51]}  Qa3 {[%clk 0:02:22]} 19. Qxa3 {[%clk 0:02:47]}  bxa3 {[%clk 0:02:21]} 20. Rac1 {[%clk 0:02:48]}  Rab8 {[%clk 0:02:15]} 21. Rc3 {[%clk 0:02:47]}  a5 {[%clk 0:02:07]} 22. Bf1 {[%clk 0:02:44]}  Nd7 {[%clk 0:01:55]} 23. Rxa3 {[%clk 0:02:36]}  Nxe5 {[%clk 0:01:55]} 24. Nxe5 {[%clk 0:02:35]}  Bxe5 {[%clk 0:01:55]} 25. Rxa5 {[%clk 0:02:35]}  Rb2 {[%clk 0:01:54]} 26. Ra7 {[%clk 0:02:18]}  Bf6 {[%clk 0:01:54]} 27. Bd3 {[%clk 0:02:14]}  Rfb8 {[%clk 0:01:53]} 28. Re3 {[%clk 0:02:10]}  Rd2 {[%clk 0:01:47]} 29. Rf3 {[%clk 0:02:09]}  h5 {[%clk 0:01:37]} 30. Kg2 {[%clk 0:02:09]}  Rbb2 {[%clk 0:01:35]} 31. a4 {[%clk 0:02:08]}  Bd4 {[%clk 0:01:29]} 32. Rxe7 {[%clk 0:02:06]}  Rxf2+ {[%clk 0:01:27]} 33. Rxf2 {[%clk 0:02:06]}  Rxf2+ {[%clk 0:01:27]} 34. Kh3 {[%clk 0:02:05]}  Ra2 {[%clk 0:01:24]} 35. Ra7 {[%clk 0:02:05]}  Bg1 {[%clk 0:01:21]} 36. g4 {[%clk 0:02:04]}  Ra3 {[%clk 0:01:17]} 37. Kg2 {[%clk 0:02:03]}  Rxd3 {[%clk 0:01:17]} 38. Kxg1 {[%clk 0:02:04]}  hxg4 {[%clk 0:01:15]} 39. Kg2 {[%clk 0:02:04]}  Rc3 {[%clk 0:01:14]} 40. Rd7 {[%clk 0:01:53]}  Rxc4 {[%clk 0:01:13]} 41. Rxd6 {[%clk 0:01:54]}  Rxa4 {[%clk 0:01:13]} 42. Rc6 {[%clk 0:01:54]}  Rd4 {[%clk 0:00:50]} 43. Rxc5 {[%clk 0:01:54]}  Kg7 {[%clk 0:00:46]} 44. Kg3 {[%clk 0:01:52]}  Kf6 {[%clk 0:00:35]} 45. Ra5 {[%clk 0:01:46]}  Ke5 {[%clk 0:00:32]} 46. Ra7 {[%clk 0:01:40]}  f5 {[%clk 0:00:29]} 47. Ra6 {[%clk 0:01:38]}  Rd3+ {[%clk 0:00:27]} 48. Kg2 {[%clk 0:01:39]}  Kf4 {[%clk 0:00:27]} 49. Rxg6 {[%clk 0:01:35]}  Rd2+ {[%clk 0:00:27]} 50. Kf1 {[%clk 0:01:35]}  Kf3 {[%clk 0:00:28]} 51. Ke1 {[%clk 0:01:34]}  Rxd5 {[%clk 0:00:27]} 52. h5 {[%clk 0:01:34]}  g3 {[%clk 0:00:25]} 53. h6 {[%clk 0:01:35]}  g2 {[%clk 0:00:23]} 54. h7 {[%clk 0:01:35]}  Rd8 {[%clk 0:00:02]} 55. Rg8 {[%clk 0:01:35]}  g1=Q+ {[%clk 0:00:02]} 56. Rxg1 {[%clk 0:01:34]}  Rh8 {[%clk 0:00:02]} 57. Rg7 {[%clk 0:01:34]}  Kf4 {[%clk 0:00:02]} 58. Kf2 {[%clk 0:01:34]}  Ke5 {[%clk 0:00:02]} 59. Kf3 {[%clk 0:01:34]}  Kf6 {[%clk 0:00:02]} 60. Ra7 {[%clk 0:01:34]}  Kg6 {[%clk 0:00:03]} 61. Kf4 {[%clk 0:01:33]}  Rxh7 {[%clk 0:00:03]} 62. Ra6+ {[%clk 0:01:34]}  Kg7 {[%clk 0:00:02]} 63. Kxf5 {[%clk 0:01:35]}  Rh5+ {[%clk 0:00:02]} 64. Kg4 {[%clk 0:01:35]}  Rh6 {[%clk 0:00:03]} 65. Ra7+ {[%clk 0:01:36]}  Kg8 {[%clk 0:00:02]} 66. Ra8+ {[%clk 0:01:36]}  Kg7 {[%clk 0:00:01]} 67. Ra7+ {[%clk 0:01:36]}  Kg8 {[%clk 0:00:01]} 68. Ra8+ {[%clk 0:01:37]}  Kg7 {[%clk 0:00:01]} 69. Ra7+ {[%clk 0:01:37]} 1/2-1/2


[Site "https://www.chess.com"]

[Event "Titled Tuesday Blitz May 2 Early 2023"]
[White "Korelskiy, Egor"]
[Black "Khamdamova, Afruza"]
[WhiteFideId "34329064"]
[BlackFideId "14210444"]
[WhiteElo "2186"]
[BlackElo "2210"]
[Result "0-1"]
[Round "08"]
[TimeControl "180+2"]
[Date "2023.05.02"]
[WhiteClock "0:00:03"]
[BlackClock "0:00:11"]

1. e4 {[%clk 0:03:00]}  c6 {[%clk 0:02:57]} 2. Nc3 {[%clk 0:03:00]}  d5 {[%clk 0:02:57]} 3. Nf3 {[%clk 0:03:00]}  Bg4 {[%clk 0:02:54]} 4. h3 {[%clk 0:03:00]}  Bxf3 {[%clk 0:02:53]} 5. Qxf3 {[%clk 0:03:01]}  d4 {[%clk 0:02:53]} 6. Ne2 {[%clk 0:03:00]}  e5 {[%clk 0:02:53]} 7. a3 {[%clk 0:02:54]}  Nf6 {[%clk 0:02:53]} 8. d3 {[%clk 0:02:54]}  Be7 {[%clk 0:02:51]} 9. g4 {[%clk 0:02:54]}  Nfd7 {[%clk 0:02:43]} 10. Bg2 {[%clk 0:02:51]}  O-O {[%clk 0:02:38]} 11. Qg3 {[%clk 0:02:50]}  c5 {[%clk 0:02:34]} 12. h4 {[%clk 0:02:47]}  Nc6 {[%clk 0:02:32]} 13. h5 {[%clk 0:02:46]}  Bg5 {[%clk 0:02:30]} 14. O-O {[%clk 0:02:37]}  h6 {[%clk 0:02:19]} 15. f4 {[%clk 0:02:34]}  exf4 {[%clk 0:02:18]} 16. Bxf4 {[%clk 0:02:33]}  Bxf4 {[%clk 0:02:10]} 17. Nxf4 {[%clk 0:02:32]}  Nde5 {[%clk 0:02:09]} 18. Nh3 {[%clk 0:02:31]}  f6 {[%clk 0:02:06]} 19. Nf4 {[%clk 0:02:30]}  Qd7 {[%clk 0:02:05]} 20. Bh3 {[%clk 0:02:29]}  Qc7 {[%clk 0:01:45]} 21. Ne6 {[%clk 0:02:28]}  Qd6 {[%clk 0:01:36]} 22. Nxf8 {[%clk 0:02:27]}  Rxf8 {[%clk 0:01:36]} 23. Rad1 {[%clk 0:02:23]}  Nd8 {[%clk 0:01:35]} 24. g5 {[%clk 0:02:18]}  hxg5 {[%clk 0:01:30]} 25. c3 {[%clk 0:02:15]}  Ndf7 {[%clk 0:01:29]} 26. Kh1 {[%clk 0:02:10]}  Nh6 {[%clk 0:01:28]} 27. b4 {[%clk 0:02:06]}  g4 {[%clk 0:01:23]} 28. Bg2 {[%clk 0:02:04]}  cxb4 {[%clk 0:01:21]} 29. axb4 {[%clk 0:01:55]}  dxc3 {[%clk 0:01:21]} 30. d4 {[%clk 0:01:55]}  c2 {[%clk 0:01:20]} 31. Qb3+ {[%clk 0:01:53]}  Kh8 {[%clk 0:01:17]} 32. Qxc2 {[%clk 0:01:51]}  Nc6 {[%clk 0:01:03]} 33. e5 {[%clk 0:01:45]}  fxe5 {[%clk 0:00:56]} 34. dxe5 {[%clk 0:01:42]}  Rxf1+ {[%clk 0:00:56]} 35. Rxf1 {[%clk 0:01:42]}  Qe7 {[%clk 0:00:50]} 36. b5 {[%clk 0:01:26]}  Qh4+ {[%clk 0:00:49]} 37. Kg1 {[%clk 0:01:26]}  Ne7 {[%clk 0:00:45]} 38. Rf8+ {[%clk 0:01:24]}  Neg8 {[%clk 0:00:44]} 39. Qd2 {[%clk 0:01:02]}  g3 {[%clk 0:00:35]} 40. e6 {[%clk 0:00:57]}  Qh2+ {[%clk 0:00:32]} 41. Kf1 {[%clk 0:00:56]}  Qxh5 {[%clk 0:00:28]} 42. e7 {[%clk 0:00:48]}  Qxb5+ {[%clk 0:00:27]} 43. Ke1 {[%clk 0:00:33]}  Qe5+ {[%clk 0:00:22]} 44. Qe2 {[%clk 0:00:28]}  Qa1+ {[%clk 0:00:22]} 45. Kd2 {[%clk 0:00:26]}  Qb2+ {[%clk 0:00:21]} 46. Ke3 {[%clk 0:00:24]}  Qa3+ {[%clk 0:00:21]} 47. Kf4 {[%clk 0:00:22]}  Qd6+ {[%clk 0:00:20]} 48. Kg5 {[%clk 0:00:14]}  Qc5+ {[%clk 0:00:14]} 49. Kh4 {[%clk 0:00:14]}  Qd4+ {[%clk 0:00:10]} 50. Kxg3 {[%clk 0:00:13]}  Qd6+ {[%clk 0:00:10]} 51. Kh3 {[%clk 0:00:10]}  Qd7+ {[%clk 0:00:10]} 52. Kh2 {[%clk 0:00:09]}  Ng4+ {[%clk 0:00:10]} 53. Qxg4 {[%clk 0:00:06]}  Qxg4 {[%clk 0:00:10]} 54. Rxg8+ {[%clk 0:00:06]}  Kxg8 {[%clk 0:00:09]} 55. e8=Q+ {[%clk 0:00:07]}  Kh7 {[%clk 0:00:09]} 56. Be4+ {[%clk 0:00:07]}  Kh6 {[%clk 0:00:09]} 57. Qh8+ {[%clk 0:00:03]}  Kg5 {[%clk 0:00:08]} 58. Qxg7+ {[%clk 0:00:03]}  Kf4 {[%clk 0:00:08]} 59. Qd4 {[%clk 0:00:04]}  Qg3+ {[%clk 0:00:08]} 60. Kh1 {[%clk 0:00:04]}  Qe1+ {[%clk 0:00:08]} 61. Kh2 {[%clk 0:00:04]}  Qxe4 {[%clk 0:00:08]} 62. Qxa7 {[%clk 0:00:04]}  Qe2+ {[%clk 0:00:08]} 63. Kg1 {[%clk 0:00:02]}  Qe3+ {[%clk 0:00:07]} 64. Qxe3+ {[%clk 0:00:02]}  Kxe3 {[%clk 0:00:08]} 65. Kf1 {[%clk 0:00:03]}  b5 {[%clk 0:00:08]} 66. Ke1 {[%clk 0:00:03]}  b4 {[%clk 0:00:08]} 67. Kd1 {[%clk 0:00:04]}  Kd3 {[%clk 0:00:09]} 68. Kc1 {[%clk 0:00:04]}  Kc3 {[%clk 0:00:09]} 69. Kb1 {[%clk 0:00:04]}  Kb3 {[%clk 0:00:10]} 70. Ka1 {[%clk 0:00:05]}  Kc2 {[%clk 0:00:10]} 71. Ka2 {[%clk 0:00:05]}  b3+ {[%clk 0:00:10]} 72. Ka1 {[%clk 0:00:05]}  b2+ {[%clk 0:00:11]} 73. Ka2 {[%clk 0:00:05]}  b1=Q+ {[%clk 0:00:11]} 74. Ka3 {[%clk 0:00:03]}  Qb3# {[%clk 0:00:11]} 0-1


[Site "https://www.chess.com"]